Cogmind - Beta 17 @@@ ROGUE MODE // 2026.07.14 @ 15:31:04 Player: IsAway Result: Destroyed by G-47 Trooper with Particle Gun Performance ------------- Evolutions (2) 1000 Regions Visited (3) 600 Robots Destroyed (71) 355 Value Destroyed (1623) 1623 Prototype IDs (3) 60 Alien Tech Used (0) 0 Bonus (0) 0 TOTAL SCORE: 3638 Bonus ------- None Cogmind --------- Core Integrity 0/550 Matter 285/300 Energy 44/100 System Corruption 33% Temperature Cool (60) Movement Core (250) Ox4 Location -8/Materials Parts ------- > --- POWER (2) -------- (None) > --- PROPULSION (4) --- (None) > --- UTILITY (3) ------ Hardened Medium Armor Plating > --- WEAPON (2) ------- EM Pulse Cannon > --- INVENTORY (5) ---- Medium Storage Unit Large Storage Unit Advanced Weight Redist. System Improved Datajack Plasma Cutter Peak State ------------ > --- POWER ------------ Light Nuclear Core Light Nuclear Core > --- PROPULSION ------- Improved Hover Unit Improved Hover Unit > --- UTILITY ---------- Improved Heat Sink Medium Storage Unit Advanced ECM Suite > --- WEAPON ----------- Heavy Assault Rifle Gauss Rifle > --- INVENTORY -------- Large Storage Unit Advanced Weight Redist. System Particle Gun Particle Gun Datajack Plasma Cutter [Rating: 25] Favorites ----------- Power Light Nuclear Core Engine Ion Engine Power Core Light Nuclear Core Propulsion Improved Hover Unit Wheel Compact Wheel Hover Unit Improved Hover Unit Flight Unit Flight Unit Utility Medium Storage Unit Device Improved Heat Sink Storage Medium Storage Unit Processor Advanced Targeting Computer Hackware Hacking Suite Protection Light Armor Plating Weapon Small Laser Energy Gun Small Laser Energy Cannon EM Pulse Cannon Ballistic Gun Heavy Assault Rifle Special Weapon Mining Laser Impact Weapon Mace Build | -11 -10 -9 -8 ------- Run | Yrd Mat Mat Mat Slots Evolved 4 | . . 2 2 Power 1 | . . . 1 Propulsion 2 | . . 1 1 Utility 1 | . . 1 . Weapon . | . . . . Parts Attached 78 | 7 13 26 32 Power 11 | 1 2 3 5 Engine 5 | 1 2 1 1 Core 6 | . . 2 4 Reactor . | . . . . Propulsion 35 | 2 5 13 15 Treads . | . . . . Leg . | . . . . Wheel 4 | 2 . 2 . Hover 22 | . 3 8 11 Flight 9 | . 2 3 4 Utility 13 | 2 1 6 4 Device 6 | 1 1 2 2 Storage 3 | 1 . 2 . Processor 1 | . . . 1 Hackware 1 | . . 1 . Protection 2 | . . 1 1 Artifact . | . . . . Weapon 19 | 2 5 4 8 Energy Gun 13 | 2 2 4 5 Energy Cannon 1 | . . . 1 Ballistic Gun 2 | . . . 2 Ballistic Cannon . | . . . . Launcher . | . . . . Special Weapon 1 | . 1 . . Impact Weapon 2 | . 2 . . Slashing Weapon . | . . . . Piercing Weapon . | . . . . Special Melee Weapon . | . . . . Unidentified Prototypes 1 | . . 1 . Parts Lost 50 | . 3 18 29 Power 7 | . 1 . 6 Propulsion 22 | . 1 11 10 Utility 7 | . 1 3 3 Weapon 14 | . . 4 10 Highest Loss Streak 9 | . 2 7 9 To Critical Strikes 1 | . . . 1 Average Backups 7 | 4 7 8 7 Power 1 | . . 2 . Propulsion 1 | 2 3 . 1 Utility 1 | . . 1 2 Weapon 2 | 1 3 3 1 Tool/Special . | . . . . Unused Backups 14 | . 4 2 8 Power 1 | . . 1 . Propulsion 5 | . 2 1 2 Utility 4 | . 1 . 3 Weapon 1 | . 1 . . Tool/Special 3 | . . . 3 Average Slot Usage (%) 84 | . 94 85 74 Engine 4 | . 12 2 2 Core 6 | . . 8 6 Wheel 3 | . 2 6 . Hover 18 | . 22 15 21 Flight 2 | . . 2 3 Device 12 | . 11 14 9 Storage 10 | . 14 11 8 Processor 1 | . . . 5 Energy Gun 16 | . 19 19 9 Ballistic Gun 1 | . . . 3 Special Weapon 2 | . 4 2 1 Peak Build Rating 25 | 9 14 16 25 Average Rating 13 | 7 10 12 18 On Entrance 8 | . 9 9 15 Avg Prop Armor Cover (%) 8 | . 7 6 16 Naked Turns . | . . . . Heaviest Build 31 | 13 15 21 31 Greatest Support 38 | 26 26 32 38 Greatest Overweight (x) 5 | . 3 5 5 Average Overweight (x) . | . . . . Largest Inventory Capacity 10 | 8 8 10 10 Average Capacity 9 | 7 8 9 9 Most Carried 10 | 6 8 10 10 Average Carried 7 | 4 7 8 7 Final Capacity 10 | 8 8 10 5 Final Carried 9 | 6 8 9 5 Class Distribution -------------------- 67% | Mutant 31% | Scavenger-Mutant Dominant Class ---------------- Mutant | -10/Materials Scavenger-Mutant | -9/Materials Mutant | -8/Materials Resources | -11 -10 -9 -8 ----------- Run | Yrd Mat Mat Mat Matter Collected 1252 | 270 150 405 427 Remotely . | . . . . Salvage Created 2205 | 107 218 1257 623 Parts 148 | 7 11 89 41 Haulers Intercepted . | . . . . Recyclers Shooed 2 | . . 2 . Parts Field Recycled . | . . . . Retrieved Matter . | . . . . Parts Self-Destructed . | . . . . Prevented . | . . . . Parts Restored . | . . . . Kills | -11 -10 -9 -8 ------- Run | Yrd Mat Mat Mat Combat Hostiles Destroyed 51 | . 9 28 14 Melee 3 | . 3 . . Guns 47 | . 5 28 14 Classes Destroyed 11 | 2 3 4 2 Worker 1 | . . 1 . Builder 6 | . . 3 3 Tunneler 2 | 2 . . . Recycler 3 | 1 . 1 1 Operator 2 | . . 1 1 Watcher 6 | . 1 5 . Swarmer 23 | . 6 11 6 Grunt 19 | . 3 11 5 Brawler 1 | . . . 1 Sentry 7 | . . 6 1 Hunter 1 | . . . 1 Best Kill Streak 7 | 1 3 7 6 Combat Bots Only 6 | . 3 6 6 Max Kills in Single Turn 3 | 1 1 2 3 Gunslinging 1 | . . 1 1 Exploded . | . . . . Melee 1 | . 1 . . Uniques/NPCs Destroyed . | . . . . Combat | -11 -10 -9 -8 -------- Run | Yrd Mat Mat Mat Hostile Shots Fired 390 | . 36 142 212 Missed 111 | . 12 33 66 Hits 279 | . 24 109 146 Melee 12 | . . . 12 Projectile 267 | . 24 109 134 Critical Strikes 12 | . . 2 10 Damage Taken 4077 | . 572 1231 2274 Core 1024 | . 203 269 552 Absorbed by Shields . | . . . . Core Remaining (%) 50 | 100 18 32 . Volleys Fired 244 | 16 32 117 79 Largest 2 | 2 2 2 2 Hottest 140 | 80 140 140 140 Shots Fired 444 | 32 63 223 126 Gun 393 | 32 46 202 113 Cannon 2 | . . . 2 Launcher . | . . . . Special 49 | . 17 21 11 Kinetic 39 | . . . 39 Thermal 401 | 32 63 223 83 Explosive . | . . . . Electromagnetic 4 | . . . 4 Robot Hit Streak 19 | 6 6 16 19 Robot Miss Streak 6 | 2 3 6 4 Penetration Max . | . . . . Secondary Targets 11 | . 1 6 4 Max Gunslinging Chain 1 | . 1 1 1 Shots Hit Robots 257 | 21 29 133 74 Core Hits 114 | 4 10 64 36 Critical Kills . | . . . . Critical Parts Destroyed 4 | . 4 . . Critical Strikes 4 | . 4 . . Smash 4 | . 4 . . Melee Attacks 14 | . 14 . . Impact 14 | . 14 . . Slashing . | . . . . Piercing . | . . . . Sneak Attacks 1 | . 1 . . Combat Hostiles . | . . . . Follow-up Attacks 2 | . 2 . . Damage Inflicted 3746 | 233 575 1484 1454 Guns 2932 | 233 171 1484 1044 Cannons 54 | . . . 54 Explosions 314 | . . . 314 Melee 404 | . 404 . . Ramming 42 | . . . 42 Kinetic 457 | . . . 457 Thermal 2757 | 233 171 1484 869 Explosive . | . . . . Electromagnetic 86 | . . . 86 Impact 404 | . 404 . . Slashing . | . . . . Piercing . | . . . . Highest Corruption 33 | . 9 . 33 Average Corruption 18 | . 9 . 28 Corruption Purged . | . . . . Corruption Blocked . | . . . . Effects 18 | . 8 . 10 Message Errors 5 | . 2 . 3 Matter Fused 2 | . 1 . 1 Heat Flow Errors 3 | . 2 . 1 Energy Discharges 1 | . 1 . . Parts Rejected 1 | . . . 1 Data Loss (minor) 2 | . 1 . 1 Weapon Failures 4 | . 1 . 3 Overload Shots . | . . . . Overflow Damage 139 | . 136 . 3 Projectiles . | . . . . Explosions 3 | . . . 3 Melee 136 | . 136 . . Knockbacks . | . . . . Impact . | . . . . Kinetic . | . . . . Secondary . | . . . . Self-Inflicted Damage 19 | . . . 19 Shots . | . . . . Rammed 8 | . . . 8 Targets Rammed 8 | . . . 8 Kicked . | . . . . Crushed . | . . . . Highest Temperature 426 | 176 270 426 250 Average Temperature 107 | 87 82 154 78 Received Heat Transfer 1488 | . 75 468 945 Effects 4 | . . 3 1 Shutdowns 1 | . . 1 . Energy Bleed 1 | . . . 1 Interference 1 | . . 1 . Damage (minor) 1 | . . 1 . Siege Activations . | . . . . Martial Activations . | . . . . Shielding Activations . | . . . . Robots Disrupted . | . . . . Combat Hostiles . | . . . . Robots Corrupted 1 | . 1 . . Combat Hostiles 1 | . 1 . . Parts Fried 5 | . 4 . 1 Impact Corruptions 8 | . 8 . . Robots Melted . | . . . . Combat Hostiles . | . . . . Parts Melted 4 | . . 4 . Heat Transferred 5782 | 525 400 3375 1482 Parts Sabotaged . | . . . . Parts Stolen . | . . . . Parts Stripped . | . . . . Power Chain Reactions . | . . . . Alert | -11 -10 -9 -8 ------- Run | Yrd Mat Mat Mat Maximum Alert Level 1 | . . 1 1 Low Security (%) 85 | 100 100 82 79 Level 1 14 | . . 17 20 Level 2 . | . . . . Level 3 . | . . . . Level 4 . | . . . . Level 5 . | . . . . High Security . | . . . . Max Security . | . . . . Peak Influence 271 | 5 125 232 271 Initial 96 | . . 9 96 Average 101 | . 47 111 136 Influence Increases 1900 | 15 273 856 756 Destroy 0b10 Robot/C 1020 | . 180 560 280 Destroy 0b10 Robot/NC 100 | 15 5 55 25 Destroy Leader 252 | . 42 140 70 Successful Hack 25 | . . 25 . Disable Machine 45 | . . . 45 Destroy Structure 53 | . 16 16 21 Partial Spotted 60 | . . 30 30 Lose Combat Pursuer 345 | . 30 30 285 Influence Decreases 1814 | 15 251 649 899 Entered New Map 146 | . . 13 133 Time Decay 1023 | 15 203 466 339 Lost Part 462 | . 12 170 280 Purge Threat 183 | . 36 . 147 Squads Dispatched 7 | . 3 1 3 Investigation 3 | . 1 1 1 Extermination . | . . . . Reinforcement 4 | . 2 . 2 Assault . | . . . . Garrison . | . . . . Intercept . | . . . . Searches Triggered . | . . . . Construction Impeded . | . . . . Haulers Reinforced . | . . . . Active Scanning Responses . | . . . . Cargo Convoy Interrupts . | . . . . Stealth | -11 -10 -9 -8 --------- Run | Yrd Mat Mat Mat Distress Signals 7 | . 1 3 3 Communications Jammed . | . . . . Distress Signals . | . . . . Times Spotted 106 | . 16 35 55 Peak Tracking Total 16 | . 3 7 16 Tactical Retreats 16 | . 2 2 12 ECM-based Alert Blocks 27 | . . . 27 Traps | -11 -10 -9 -8 ------- Run | Yrd Mat Mat Mat Traps Triggered 1 | . 1 . . Indirectly . | . . . . Trap Hack Attempts . | . . . . Triggered . | . . . . Disarmed . | . . . . Reprogrammed . | . . . . Reused . | . . . . Traps Extracted . | . . . . Installed . | . . . . Triggered . | . . . . Machines | -11 -10 -9 -8 ---------- Run | Yrd Mat Mat Mat Machines Disabled 3 | . . . 3 Max in Single Turn 3 | . . . 3 Machines Repaired . | . . . . Machines Dismantled . | . . . . Machines Sabotaged . | . . . . Overloaded Fab Kills . | . . . . Hacking | -11 -10 -9 -8 --------- Run | Yrd Mat Mat Mat Machines Accessed 14 | . 4 7 3 Terminals 9 | . 3 4 2 Fabricators . | . . . . Repair Stations 2 | . . 1 1 Recycling Units 2 | . 1 1 . Scanalyzers 1 | . . 1 . Garrison Access . | . . . . Total Hacks 29 | . 6 15 8 Successful 12 | . 2 8 2 Failed 16 | . 4 6 6 Catastrophic 5 | . 1 2 2 Database Lockouts 1 | . . 1 . Manual 6 | . 5 1 . Terminals 15 | . 5 6 4 Fabricators . | . . . . Repair Stations 7 | . . 3 4 Recycling Units 2 | . 1 1 . Scanalyzers 5 | . . 5 . Garrison Access . | . . . . Terminal Hacks 6 | . 1 3 2 Robot Analysis 1 | . . 1 . Prototype ID Bank 1 | . . 1 . Unreport Threat 2 | . 1 . 1 Zone Layout 2 | . . 1 1 Fabricator Hacks . | . . . . Repair Station Hacks 1 | . . 1 . Refit 1 | . . 1 . Recycling Unit Hacks 2 | . 1 1 . Retrieve Components 2 | . 1 1 . Scanalyzer 3 | . . 3 . Retrieve Study 3 | . . 3 . Garrison Access Hacks . | . . . . Unauthorized Hacks . | . . . . Terminals . | . . . . Fabricators . | . . . . Repair Stations . | . . . . Recycling Units . | . . . . Scanalyzers . | . . . . Garrison Access . | . . . . Data Cores Recovered 1 | . . 1 . Used . | . . . . Hacking Detections 9 | . 3 4 2 Full Trace Events 2 | . . 1 1 Feedback Events . | . . . . Feedback Blocked . | . . . . Robot Schematics Acquired . | . . . . Robots Built . | . . . . Authchips . | . . . . Time . | . . . . Total Robot Build Rating . | . . . . Part Schematics Acquired . | . . . . Parts Built . | . . . . Authchips . | . . . . Time . | . . . . Total Part Build Rating . | . . . . Part Studies Acquired 3 | . . 3 . Parts Repaired . | . . . . Time . | . . . . Parts Recycled . | . . . . Recycled Matter . | . . . . Retrieved Matter . | . . . . Retrieved Components 18 | . 9 9 . Parts Scanalyzed . | . . . . Part Schematics Acquired . | . . . . Parts Damaged . | . . . . Bothacking | -11 -10 -9 -8 ------------ Run | Yrd Mat Mat Mat Used RIF Installer . | . . . . Robots Hacked . | . . . . Non-combat . | . . . . Combat . | . . . . Robot Hacks Applied . | . . . . Relay Couplers Released . | . . . . Fabnet Peak Effective % . | . . . . Robots Rewired . | . . . . Allies Hacked . | . . . . Hacks Repelled . | . . . . Allies | -11 -10 -9 -8 -------- Run | Yrd Mat Mat Mat Total Allies . | . . . . Largest Group . | . . . . Highest-Rated Group . | . . . . Highest-Rated Ally . | . . . . Total Orders . | . . . . Ally Attacks . | . . . . Total Damage . | . . . . Kills . | . . . . Allies Corrupted . | . . . . Allies Melted . | . . . . Intel | -11 -10 -9 -8 ------- Run | Yrd Mat Mat Mat Active Infowar (turns) 1200 | 74 474 367 285 Terrain 494 | 74 420 . . Structural 421 | . 54 367 . ECM 285 | . . . 285 Robot Analysis Total 1 | . . 1 . Derelict Logs Recovered . | . . . . Drone Launches . | . . . . Drone Recoveries . | . . . . Exploration | -11 -10 -9 -8 ------------- Run | Yrd Mat Mat Mat Turns Passed 2727 | 116 563 1215 833 Spaces Moved 1915 | 58 464 895 498 Core 99 | 2 . 42 55 Treads . | . . . . Legs . | . . . . Wheels 519 | 56 37 426 . Hover 1111 | . 408 326 377 Flight 186 | . 19 101 66 Fastest Speed 31 | 50 37 34 31 Average Speed 77 | 89 64 80 81 Slowest Speed 300 | 100 280 300 300 Overloaded Moves . | . . . . Propulsion Burnouts . | . . . . Robots Hopped . | . . . . Potential Cave-ins 2 | . . 2 . Cave-ins Triggered 1 | . 1 . . Exploration Rate (%) 50 | 4 82 62 55 Regions Visited 3 Branch Regions . Pre-discovered Areas . | . . . . Known Exits Taken . | . . . . Unknown Exits Taken 3 | 1 1 1 . Scrap Searched . | . . . . Spaces Dug 47 | . 17 19 11 Terrain Destroyed 56 | . 17 19 20 Melee . | . . . . Projectile 47 | . 17 19 11 AOE 9 | . . . 9 Terrain Rammed . | . . . . Walls Destroyed . | . . . . Machines Disabled . | . . . . Actions | -11 -10 -9 -8 --------- Run | Yrd Mat Mat Mat Total 2582 | 86 609 1115 772 Wait 190 | . 63 21 106 Move 1912 | 57 463 894 498 Hop . | . . . . Pick Up 54 | 6 9 21 18 Fast Attach 35 | 7 6 9 13 Attach 39 | . 2 17 20 Detach 3 | . . 2 1 Swap 42 | . 9 21 12 Drop 43 | . 13 13 17 Fire 244 | 16 32 117 79 Melee 12 | . 12 . . Ram 8 | . . . 8 Kick . | . . . . Crush . | . . . . Escape Stasis . | . . . . Rewire . | . . . . Trap . | . . . . Miscellaneous . | . . . . Route ------- -11/Scrapyard -10/Materials (discovered 4 exits: *Mat x2 / [*Min] / [Sub]) -9/Materials (discovered 2 exits: *Mat / [*Min]) -8/Materials (discovered 2 exits: [*Fac] / [*Sto]) History --------- Turn | Location | Event 23 | -11/Scrapyard | Discovered new exit (range 16) 117 | -11/Scrapyard | Entered Materials 135 | -10/Materials | Discovered new exit (range 8) 305 | -10/Materials | Discovered new exit (range 16) 318 | -10/Materials | Build established: Mutant 383 | -10/Materials | Discovered new exit (range 15) 537 | -10/Materials | Crushed by falling debris 537 | -10/Materials | Core integrity fell below 50% 651 | -10/Materials | Discovered new exit (range 4) 661 | -10/Materials | Core integrity fell below 20% 680 | -10/Materials | Entered another Materials area 680 | -9/Materials | Evolved 2 slots: Propulsion x1, Utility x1 686 | -9/Materials | Central database locked down 873 | -9/Materials | Lost 4 parts (2n1u1w) 1113 | -9/Materials | Lost 7 parts (4n2u1w) 1187 | -9/Materials | Discovered new exit (range 12) 1399 | -9/Materials | Build established: Scavenger-Mutant 1410 | -9/Materials | Core integrity fell below 50% 1531 | -9/Materials | Discovered new exit (range 7) 1768 | -9/Materials | Lost 4 parts (3n1w) 1895 | -9/Materials | Entered another Materials area 1895 | -8/Materials | Evolved 2 slots: Power x1, Propulsion x1 2184 | -8/Materials | Discovered new exit (range 16) 2249 | -8/Materials | Lost 6 parts (3p1n2w) 2278 | -8/Materials | Build established: Mutant 2291 | -8/Materials | Discovered new exit (range 5) 2429 | -8/Materials | Core integrity fell below 50% 2475 | -8/Materials | Lost 9 parts (5n1u3w) 2617 | -8/Materials | Core integrity fell below 20% 2620 | -8/Materials | System corruption reached 10% 2642 | -8/Materials | System corruption reached 30% 2672 | -8/Materials | Lost 9 parts (2p2n2u3w) 2728 | -8/Materials | Destroyed by G-47 Trooper with Particle Gun Last Messages --------------- K-01 Serf collects debris. System corrupted: Component data lost. K-01 Serf collects debris. |IBHUY=7RPRC4PA7SRZD U Acquired Hrd. Medium Armor Plating. Dropped Med. Storage Unit. Acquired Med. Storage Unit. Acquired EM Pulse Cannon. System corrupted: Heat flow error (+158). B3WN9##0EC IBR M>N 0KZE0Y1|Q U-05 Engineer destroyed. Critical hit (Burn: +37). K-01 Serf collects debris. System corrupted: Particle Gun failed to cycle. Particle Gun destroyed. Terrain Scanner fried. U-05 Engineer destroyed. K-01 Serf collects debris. O>PJPJJNXRF%3ZL1QJ9XB K-01 Serf collects debris. Map ----- +----------------------------------------------------+ | ????# " ! # #???# #####??????????????? | | ????# ] # #???# #??????????????????? | | ????########### =#???# #??????????????????? | | ??????????????######???# #??????????????????? | | ???????????????????????# #??????????????????? | | ???????????????????????# #??????????????????? | | ???????????????????????# #??????????????????? | | ????????????????????#####/#####??????????????????? | | ????????????????????# #??????????????????? | | ???????????????????## #??????????????????? | | ???????????????????# "" #??????????????????? | | ???????????????????## ==% """ #??????????????????? | | ????????????????????# == S" #??????????????????? | | ???????????????? ???# =! """ #??????????????????? | | ??????????????# ??# """ #??????????????????? | | ?????????????## ###= #??????????????????? | | ???????????+### ######+######??????????????????? | | ????????? !%* %#???????????????????????? | | ????????? =|! ##?????###??????????????? | | ??????????? ! g ##########??????????????? | | ??????????? k= g # #??????????????? | | ?????????? k #! """" #??????????????? | | ?????????? !gg k # """" #??????????????? | | ????????? ! # """" #??????????????? | | ????????? % %! # #??????????????? | | ????????? = = @ """ #??????????????? | | ????????? u # """ #??????????????? | | ?????????????###+##### # """ #??????????????? | | ?????????????? ?????# % # #??????????????? | | ?????????????? ??????#u ##########??????????????? | | ?????????????????????# # #????????????????? | | ?????????????????????# #[ """#????????????????? | | ?########????????????# # """#????????????????? | | ?# #????????????# # ! """#????????????????? | | ?# !!!#????????????# + #????????????????? | | ?# !!!#???# """ # # #????????????????? | | ?# !!!#???# # ########????????????????? | | ?# ############## ##??????????????????????? | | ?# ^ # ####### % ######################?? | | ######/## #?? | | !% %==% *! #?? | | ######### #?? | | #???????# ####### ###+#############+####?? | | #??????####+#####???####### = #????#==[ #?? | | #??????#/ #????????## = #????#= [ #?? | | #??????# """ #????????## = #????#%""" #?? | | #??????# """ #????????## == #????# """ #?? | | #??????# """ #?????????# #????# """ #?? | | #??????# #?????????# #????# #?? | | ???????# #???????### #????########?? | +----------------------------------------------------+ Best States ------------- Heat Dissipation 45 Energy Generation 23 Energy Capacity 250 Matter Stores 300 Matter Capacity 300 Sight Range 16 Terrain Scan Range 16 Terrain Scan Density 10 ECM Strength 1 Additional Mass Support 6 Armor Coverage 225 Evasion (%) 63 Targeting Accuracy 8 Offensive Hacking 10 Item Schematics ----------------- None Robot Schematics ------------------ None Fabricated ------------ Nothing Repaired ---------- Nothing Studied --------- Imp. Hover Unit | -9/Materials | Hacked Sml. Laser | -9/Materials | Hacked Lgt. Ion Engine | -9/Materials | Hacked Alien Tech Used ----------------- None Achievements -------------- None Challenges ------------ None Game ------ Seed SpreadArchitectThrower Manual? 0 Play Time 00:59:32 Cumulative 39.0 hours Start 2026.07.14 @ 14:32:41 End 2026.07.14 @ 15:31:04 Sessions 1 Manual Loads 0 Difficulty Rogue Special Mode None Game No. 52 Rogue 52 Adventurer 0 Explorer 0 Win Type - Total 0 Types 0/0/0/0/0/0/0/0/0/0 Lore% 38 Gallery% 28 Achievement% 26 Wizard Run 0 Options --------- Layout 1 ASCII 0 Keyboard 0 Movement Mouse Keybinds 0 Fullscreen 2 Font 18/SmallcapsGlow Map View 51x41 Zoom Use 0% Tactical HUD 0 Map Filters NONE Filters NONE Steam 1 RUN: be2dac6c-70f7-49d0-b076-8088136d4442